bitfinex-derivatives/quotes_BTCF0:USTF0_20251213
["timestamp","ask_amount","ask_price","bid_price","bid_amount"]
[1765610236300,0.06168,90419.0,90418.0,1.1357788]
[1765610237096,0.03436,90419.0,90418.0,1.1357788]
[1765610240016,0.005,90419.0,90418.0,1.1357788]
[1765610241814,0.06357578,90424.0,90423.0,0.0679782]
[1765610242011,0.06357578,90424.0,90423.0,0.7582982]
[1765610243000,0.06657578,90424.0,90423.0,0.7582982]
[1765610243230,0.06957578,90424.0,90423.0,0.7582982]
[1765610244316,0.06361,90424.0,90423.0,0.7582982]
[1765610244506,0.08890171,90424.0,90423.0,0.7582982]
[1765610247119,0.03129171,90424.0,90423.0,0.7582982]
[1765610247320,0.09016171,90424.0,90423.0,0.7582982]
[1765610248021,0.09016171,90424.0,90423.0,0.05692]
[1765610248215,0.09016171,90424.0,90423.0,0.7472]
[1765610249016,0.09016171,90424.0,90423.0,0.7582582]
[1765610250926,0.09016171,90424.0,90423.0,0.05692]
[1765610251125,0.09016171,90424.0,90423.0,0.5376]
[1765610260621,0.09016171,90424.0,90423.0,0.05692]
[1765610271528,0.09048768,90424.0,90423.0,0.05692]
[1765610272540,0.09909768,90424.0,90423.0,0.05692]
[1765610274243,0.09909768,90424.0,90423.0,0.41772]
[1765610275444,0.09048768,90424.0,90423.0,0.41772]
[1765610275644,0.09915768,90424.0,90423.0,0.41772]
[1765610279250,0.09048768,90424.0,90423.0,0.41772]
[1765610282742,0.09915768,90424.0,90423.0,0.41772]
[1765610283143,0.15886553,90424.0,90423.0,0.41772]
[1765610284057,0.09915768,90424.0,90423.0,0.41772]
[1765610284852,0.09920506,90424.0,90423.0,0.41772]
[1765610286944,0.1589096,90424.0,90423.0,0.41772]
[1765610288152,0.09920506,90424.0,90423.0,0.41772]
[1765610289649,0.1589168,90424.0,90423.0,0.41772]
[1765610290155,0.09920506,90424.0,90423.0,0.41772]
[1765610291857,0.09053506,90424.0,90423.0,0.41772]
[1765610292155,0.09053506,90424.0,90423.0,0.05692]
[1765610295965,0.09053506,90424.0,90414.0,0.07572]
[1765610295966,0.0696692,90415.0,90414.0,0.07572]
[1765610296157,0.09533426,90415.0,90414.0,0.07572]
[1765610297956,0.09633426,90415.0,90414.0,0.07572]
[1765610298355,0.09733426,90415.0,90414.0,0.07572]
[1765610305871,0.09733426,90415.0,90414.0,0.43652]
[1765610306673,0.09733426,90415.0,90414.0,0.07572]
[1765610306873,0.09733426,90415.0,90414.0,0.43652]
[1765610312478,0.06734426,90415.0,90414.0,0.43652]
[1765610312679,0.03872426,90415.0,90414.0,0.43652]
[1765610315785,0.02766506,90415.0,90414.0,0.43652]
[1765610326702,0.05543506,90415.0,90414.0,0.43652]
[1765610327698,0.02766506,90415.0,90414.0,0.43652]
[1765610328897,0.05543506,90415.0,90414.0,0.43652]
[1765610329103,0.02766506,90415.0,90414.0,0.43652]
[1765610329496,0.02766506,90415.0,90414.0,1.1268]
[1765610334497,0.02766506,90415.0,90414.0,0.766]
[1765610334898,0.02766506,90415.0,90414.0,1.1268]
[1765610345406,0.02766506,90415.0,90414.0,1.4876]
[1765610392051,0.02766506,90415.0,90414.0,0.766]
[1765610392257,0.02766506,90415.0,90414.0,1.4876]
[1765610397556,0.02766506,90415.0,90414.0,0.766]
[1765610397760,0.02766506,90415.0,90414.0,1.4876]
[1765610398363,0.02766506,90415.0,90414.0,0.766]
[1765610398662,0.02766506,90415.0,90414.0,1.4876]
[1765610399461,0.002,90415.0,90414.0,1.4876]
[1765610404375,0.002,90415.0,90414.0,0.766]
[1765610404676,0.002,90415.0,90414.0,1.4876]
[1765610405477,0.002,90415.0,90414.0,0.766]
[1765610405673,0.002,90415.0,90414.0,1.4876]
[1765610408671,0.002,90415.0,90414.0,0.766]
[1765610408878,0.002,90415.0,90414.0,1.4876]
[1765610409669,0.002,90415.0,90414.0,0.766]
[1765610409967,0.002,90415.0,90414.0,1.4876]
[1765610418479,0.002,90415.0,90414.0,0.766]
[1765610418880,0.002,90415.0,90414.0,1.4876]
[1765610422081,0.002,90415.0,90414.0,0.766]
[1765610422281,0.002,90415.0,90414.0,1.4876]
[1765610432083,0.002,90415.0,90414.0,0.766]
[1765610432288,0.002,90415.0,90414.0,1.4876]
[1765610436579,0.002,90415.0,90414.0,0.766]
[1765610436777,0.002,90415.0,90414.0,1.1268]
[1765610436980,0.002,90415.0,90414.0,1.4876]
[1765610437594,0.002,90415.0,90414.0,0.766]
[1765610437892,0.002,90415.0,90414.0,1.4876]
[1765610438492,0.002,90415.0,90414.0,0.766]
[1765610438796,0.002,90415.0,90414.0,1.4876]
[1765610440595,0.002,90415.0,90414.0,0.766]
[1765610440796,0.002,90415.0,90414.0,1.4876]
[1765610442588,0.002,90415.0,90414.0,0.766]
[1765610442790,0.002,90415.0,90414.0,1.4876]
[1765610444393,0.002,90415.0,90414.0,0.766]
[1765610444701,0.002,90415.0,90414.0,1.4876]
[1765610452412,0.002,90415.0,90414.0,0.766]
[1765610452613,0.002,90415.0,90414.0,1.4876]
[1765610453714,0.002,90415.0,90414.0,0.766]
[1765610453914,0.002,90415.0,90414.0,1.4876]
[1765610463411,0.002,90415.0,90414.0,0.766]
[1765610463725,0.002,90415.0,90414.0,1.4876]
[1765610469226,0.0565,90415.0,90414.0,1.4876]
[1765610469527,0.0565,90415.0,90414.0,1.48752]
[1765610470032,0.08367986,90415.0,90414.0,1.47098]
[1765610470426,0.08367986,90415.0,90414.0,1.4820393]
[1765610473832,0.08367986,90415.0,90414.0,0.7918393]
[1765610474030,0.08367986,90415.0,90414.0,1.4820393]
[1765610474836,0.08366296,90415.0,90414.0,1.4820393]
[1765610478838,0.08366296,90415.0,90414.0,1.4820793]
[1765610479226,0.08366296,90415.0,90414.0,0.7918393]
[1765610479436,0.08366296,90415.0,90414.0,1.4820793]
[1765610480239,0.08366296,90415.0,90414.0,0.7918393]
[1765610480438,0.08366296,90415.0,90414.0,1.3192393]
[1765610482940,0.08366296,90415.0,90414.0,0.9584393]
[1765610490639,0.08366296,90415.0,90414.0,0.94738]
[1765610491552,0.08366296,90415.0,90414.0,0.41998]
[1765610491743,0.08366296,90415.0,90414.0,1.11022]
[1765610492341,0.48366296,90415.0,90414.0,0.3608]
[1765610492541,0.42916296,90415.0,90409.0,0.00016591]
[1765610492748,0.05791,90399.0,90398.0,0.4528]
[1765610492948,0.08507296,90399.0,90398.0,0.4528]
[1765610493238,0.09613406,90399.0,90398.0,0.4528]
[1765610493636,0.0689717,90394.0,90393.0,0.41822]
[1765610493837,0.09613466,90394.0,90393.0,0.41822]
[1765610494050,0.09613466,90394.0,90393.0,0.3608]
[1765610494636,0.09613466,90394.0,90393.0,0.38919]
[1765610494836,0.09613466,90394.0,90393.0,0.42022]
[1765610495651,0.09613466,90394.0,90393.0,0.43781]
[1765610496443,0.09613466,90394.0,90393.0,0.43881]
[1765610500856,0.09613466,90394.0,90393.0,0.07801]
[1765610502342,0.09613466,90394.0,90393.0,0.06042]
[1765610503248,0.06628466,90394.0,90393.0,0.07801]
[1765610503453,0.09613466,90394.0,90393.0,0.07801]
[1765610522161,0.1558021,90394.0,90393.0,0.07801]
[1765610526486,0.09613466,90394.0,90393.0,0.07801]
[1765610527870,0.06628466,90394.0,90393.0,0.07801]
[1765610528785,0.09615466,90394.0,90393.0,0.07801]
[1765610543005,0.09615466,90394.0,90393.0,0.43881]
[1765610547106,0.09615466,90394.0,90393.0,0.07801]
[1765610547306,0.09615466,90394.0,90393.0,0.43881]
[1765610548103,0.09615466,90394.0,90393.0,0.07801]
[1765610548309,0.09615466,90394.0,90393.0,0.43881]
[1765610554213,0.06628466,90394.0,90393.0,0.43881]
[1765610554409,0.03822466,90394.0,90393.0,0.43881]
[1765610555813,0.02716296,90394.0,90393.0,0.43881]
[1765610556007,0.02897,90396.0,90395.0,0.05797]
[1765610556211,0.11681584,90396.0,90395.0,0.05797]
[1765610556513,0.0571484,90396.0,90395.0,0.05797]
[1765610557599,0.0871184,90396.0,90395.0,0.05797]
[1765610557909,0.14678584,90396.0,90395.0,0.05797]
[1765610558114,0.14678584,90396.0,90395.0,0.05897]
[1765610558300,0.14678584,90396.0,90395.0,0.05997]
[1765610565912,0.0871184,90396.0,90395.0,0.05997]
[1765610573723,0.0571484,90396.0,90395.0,0.05997]
[1765610574114,0.0871184,90396.0,90395.0,0.05997]
[1765610580228,0.0871184,90396.0,90395.0,0.75045]
[1765610584932,0.0871184,90396.0,90395.0,1.11125]
[1765610585631,0.0871184,90396.0,90395.0,0.42077]
[1765610585831,0.0871184,90396.0,90395.0,1.11125]
[1765610586226,0.0871184,90396.0,90395.0,0.42077]
[1765610586526,0.0871184,90396.0,90395.0,1.11125]
[1765610587823,0.0871184,90396.0,90395.0,0.42077]
[1765610588130,0.0871184,90396.0,90395.0,1.11125]
[1765610596526,0.0871184,90396.0,90395.0,0.75045]
[1765610596732,0.0871184,90396.0,90395.0,1.11125]
[1765610604049,0.0871184,90396.0,90395.0,0.75045]
[1765610604240,0.0871184,90396.0,90395.0,1.11125]
[1765610624472,0.0871184,90396.0,90395.0,1.12785]
[1765610624673,0.0571484,90396.0,90395.0,1.12785]
[1765610627475,0.0571484,90396.0,90395.0,0.43737]
[1765610627675,0.0571484,90396.0,90395.0,1.12785]
[1765610629779,0.0281784,90396.0,90395.0,1.12785]
[1765610635185,0.0281784,90396.0,90395.0,1.12685]
[1765610635389,0.0281784,90396.0,90395.0,1.12785]
[1765610646997,0.0281784,90396.0,90395.0,1.12781]
[1765610648292,0.02803957,90396.0,90395.0,1.12781]
[1765610648493,0.0110613,90398.0,90397.0,0.05932]
[1765610649894,0.0110613,90398.0,90397.0,0.06032]
[1765610650097,0.0110613,90398.0,90397.0,0.06132]
[1765610653494,0.01036141,90398.0,90397.0,0.06132]
[1765610653697,0.07072824,90402.0,90401.0,0.05932]
[1765610653889,0.0110608,90402.0,90401.0,0.05932]
[1765610654890,0.00016591,90408.0,90407.0,0.05932]
[1765610655097,0.05966744,90420.0,90418.0,0.04639]
[1765610655305,0.0110581,90424.0,90423.0,0.05932]
[1765610656592,0.0140581,90424.0,90423.0,0.05932]
[1765610656794,0.0160581,90424.0,90423.0,0.05932]
[1765610660290,0.04380872,90424.0,90423.0,0.05932]
[1765610660490,0.09901872,90424.0,90423.0,0.05932]
[1765610672710,0.09901872,90424.0,90423.0,0.42012]
[1765610675309,0.07324872,90424.0,90423.0,0.42012]
[1765610675514,0.10094872,90424.0,90423.0,0.42012]
[1765610679113,0.04380872,90424.0,90423.0,0.42012]
[1765610680004,0.03275062,90424.0,90423.0,0.42012]
[1765610687625,0.03275062,90424.0,90423.0,1.11056]
[1765610695527,0.03275062,90424.0,90423.0,1.47136]
[1765610696627,0.06006062,90424.0,90423.0,1.47136]
[1765610697020,0.08817062,90424.0,90423.0,1.47136]
[1765610697329,0.08817062,90424.0,90423.0,0.78092]
[1765610697517,0.08817062,90424.0,90423.0,1.47132]
[1765610705535,0.08817062,90424.0,90423.0,0.78092]
[1765610705734,0.08817062,90424.0,90423.0,1.47128]
[1765610710736,0.08817062,90424.0,90423.0,0.78092]
[1765610710937,0.08817062,90424.0,90423.0,1.11048]
[1765610712138,0.08817062,90424.0,90423.0,0.42012]
[1765610712332,0.08817062,90424.0,90423.0,0.02976]
[1765610716838,0.08817062,90424.0,90423.0,0.05719]
[1765610723251,0.11971843,90424.0,90423.0,0.05719]
[1765610723744,0.14744843,90424.0,90423.0,0.05719]
[1765610725851,0.08779062,90424.0,90423.0,0.05719]
[1765610726652,0.08779062,90424.0,90423.0,0.41799]
[1765610731351,0.08779062,90424.0,90423.0,0.05719]
[1765610731556,0.08779062,90424.0,90423.0,0.41799]
[1765610735357,0.08779062,90424.0,90423.0,0.05719]
[1765610735557,0.08779062,90424.0,90423.0,0.41799]
[1765610738062,0.14744843,90424.0,90423.0,0.41799]
[1765610739763,0.14744843,90424.0,90423.0,0.39056]
[1765610740062,0.08779062,90424.0,90423.0,0.39056]
[1765610740564,0.08779062,90424.0,90423.0,0.41771]
[1765610745466,0.08779062,90424.0,90423.0,0.05691]
[1765610750270,0.0680587,90419.0,90418.0,0.40543]
[1765610750468,0.0680587,90419.0,90408.0,0.01711]
[1765610750469,0.057,90415.0,90414.0,0.07242591]
[1765610750670,0.08475062,90415.0,90414.0,0.07242591]
[1765610750872,0.16439787,90415.0,90414.0,0.07242591]
[1765610751168,0.08475062,90415.0,90414.0,0.07242591]
[1765610752970,0.08675062,90415.0,90414.0,0.07242591]
[1765610774183,0.17924094,90431.0,90430.0,0.07536]
[1765610774384,0.0110572,90431.0,90430.0,0.07536]
[1765610774583,0.0110572,90431.0,90430.0,0.43616]
[1765610774778,0.0694272,90431.0,90430.0,0.43616]
[1765610775284,0.0734272,90431.0,90430.0,0.43616]
[1765610775685,0.0764272,90431.0,90430.0,0.43616]
[1765610785491,0.0764272,90431.0,90430.0,0.05825]
[1765610786197,0.10376785,90431.0,90430.0,0.05825]
[1765610786988,0.1633889,90431.0,90430.0,0.05825]
[1765610788302,0.10376785,90431.0,90430.0,0.05825]
[1765610789107,0.16330915,90431.0,90430.0,0.05825]
[1765610790205,0.10376785,90431.0,90430.0,0.05825]
[1765610798915,0.10376785,90431.0,90430.0,0.02918]
[1765610800004,0.10376785,90431.0,90430.0,0.05745]
[1765610801017,0.10376785,90431.0,90430.0,0.02918]
[1765610807925,0.10376785,90431.0,90430.0,0.05745]
[1765610809921,0.0682284,90421.0,90420.0,0.07364]
[1765610810227,0.09556905,90421.0,90420.0,0.05606]
[1765610811731,0.09756905,90421.0,90420.0,0.05606]
[1765610812432,0.09856905,90421.0,90420.0,0.05606]
[1765610814431,0.104133,90421.0,90420.0,0.05606]
[1765610822428,0.074543,90421.0,90420.0,0.05606]
[1765610822638,0.046963,90421.0,90420.0,0.07018]
[1765610822829,0.046963,90421.0,90420.0,0.43098]
[1765610823030,0.06913905,90421.0,90420.0,0.43098]
[1765610823727,0.09864905,90421.0,90420.0,0.43098]
[1765610828129,0.10109032,90421.0,90420.0,0.43098]
[1765610828434,0.0683092,90415.0,90414.0,0.05840591]
[1765610828625,0.09564985,90415.0,90414.0,0.05840591]
[1765610829636,0.09664985,90415.0,90414.0,0.05840591]
[1765610830128,0.09651295,90415.0,90414.0,0.05840591]
[1765610857160,0.06700295,90415.0,90414.0,0.05840591]
[1765610857560,0.09533295,90415.0,90414.0,0.05840591]
[1765610860958,0.15506636,90415.0,90414.0,0.05840591]
[1765610861355,0.09533295,90415.0,90414.0,0.05840591]
[1765610862765,0.08427375,90415.0,90414.0,0.05840591]
[1765610863065,0.02820375,90415.0,90414.0,0.07471591]
[1765610867458,0.09593295,90415.0,90414.0,0.05840591]
[1765610874962,0.08487375,90415.0,90414.0,0.05840591]
[1765610886380,0.08487375,90415.0,90414.0,0.06659591]
[1765610886381,0.02820375,90415.0,90414.0,0.06659591]
[1765610897190,0.02820375,90415.0,90414.0,0.75755591]
[1765610899094,0.02820375,90415.0,90414.0,1.47915591]
[1765610901399,0.001,90415.0,90414.0,1.47915591]
[1765610902885,0.001,90415.0,90414.0,1.47907591]
[1765610904998,0.001,90415.0,90414.0,0.75747591]
[1765610905202,0.001,90415.0,90414.0,1.47907591]
[1765610907105,0.001,90415.0,90414.0,1.53200054]
[1765610907402,0.001,90415.0,90414.0,1.532092]
[1765610908906,0.001,90415.0,90414.0,1.5309731]
[1765610913508,0.001,90415.0,90414.0,1.5308931]
[1765610919710,0.001,90415.0,90414.0,0.8400931]
[1765610919899,0.00077801,90415.0,90414.0,1.5308531]
[1765610921316,0.02808556,90415.0,90414.0,1.5308531]
[1765610922915,0.02808556,90415.0,90414.0,1.47895591]
[1765610923516,0.02808556,90415.0,90414.0,1.53176797]
[1765610924218,0.08404556,90415.0,90414.0,1.47895591]
[1765610924807,0.02808556,90415.0,90414.0,1.47895591]
[1765610925008,0.02808556,90415.0,90414.0,0.78819591]
[1765610925311,0.02808556,90415.0,90414.0,1.47891591]
[1765610934218,0.05621556,90415.0,90414.0,1.47891591]
[1765610934819,0.02808556,90415.0,90414.0,1.47891591]
[1765610936220,0.08650556,90415.0,90414.0,1.47072591]
[1765610939131,0.05664556,90415.0,90414.0,1.47072591]
[1765610939434,0.02808556,90415.0,90414.0,1.47072591]
[1765610939630,0.02808556,90415.0,90414.0,1.48835591]
[1765610941732,0.02808556,90415.0,90414.0,0.79763591]
[1765610942031,0.02808556,90415.0,90414.0,1.48827591]
[1765610947429,0.02808556,90415.0,90414.0,0.79763591]
[1765610947634,0.02808556,90415.0,90414.0,1.48823591]
[1765610965449,0.02805715,90415.0,90414.0,1.48823591]
[1765610980958,0.02805715,90415.0,90414.0,1.53999303]
[1765610981764,0.02805715,90415.0,90414.0,0.81839303]
[1765610981965,0.02805715,90415.0,90414.0,1.53999303]
[1765610987066,0.02805715,90415.0,90414.0,1.48823591]
[1765610989169,0.02805715,90415.0,90414.0,1.54030921]
[1765611000675,0.02805715,90415.0,90414.0,1.48823591]
[1765611001373,0.02805715,90415.0,90414.0,1.54102163]
[1765611002182,0.00077801,90415.0,90414.0,1.54102163]
[1765611004081,0.06438039,90432.0,90431.0,0.0697972]
[1765611004272,0.09148549,90432.0,90431.0,1.1211172]
[1765611004786,0.0833451,90432.0,90431.0,1.1211172]
[1765611005079,0.0873451,90432.0,90431.0,1.1211172]
[1765611005280,0.0903451,90432.0,90431.0,1.1211172]
[1765611005674,0.1037151,90432.0,90431.0,1.1211172]
[1765611006779,0.10293709,90432.0,90431.0,1.1211172]
[1765611006980,0.06080709,90432.0,90431.0,1.1211172]
[1765611007382,0.08956709,90432.0,90431.0,1.1211172]
[1765611013781,0.08956709,90432.0,90431.0,0.7603172]
[1765611013982,0.08956709,90432.0,90431.0,1.1211172]
[1765611016681,0.0341051,90432.0,90431.0,1.1211172]
[1765611017090,0.0615851,90432.0,90431.0,1.1211172]
[1765611026987,0.0341051,90432.0,90431.0,1.1211172]
[1765611029898,0.0933651,90432.0,90431.0,1.1211172]
[1765611030589,0.0933651,90432.0,90431.0,0.4305972]
[1765611030890,0.0933651,90432.0,90431.0,1.1210372]
[1765611033204,0.0933651,90432.0,90431.0,1.4818372]
[1765611033403,0.0933651,90432.0,90431.0,0.7913972]
[1765611033598,0.0933651,90432.0,90431.0,1.4818372]
[1765611035898,0.0933651,90432.0,90431.0,0.7913972]
[1765611036103,0.0639951,90432.0,90431.0,1.4818372]
[1765611038697,0.0639951,90432.0,90431.0,0.7913972]
[1765611038897,0.0639951,90432.0,90431.0,1.4818372]
[1765611040503,0.0341051,90432.0,90431.0,1.4818372]
[1765611043804,0.0639951,90432.0,90431.0,1.4818372]
[1765611046507,0.0639951,90432.0,90431.0,0.7913972]
[1765611046710,0.0639951,90432.0,90431.0,1.3990372]
[1765611047208,0.0933651,90432.0,90431.0,1.3990372]
[1765611049009,0.0933651,90432.0,90431.0,0.7913972]
[1765611049208,0.0639951,90432.0,90431.0,1.4818372]
[1765611050005,0.0341051,90432.0,90431.0,1.4818372]
[1765611050409,0.0341051,90432.0,90431.0,0.7602372]
[1765611050601,0.0341051,90432.0,90431.0,1.4818372]
[1765611051409,0.0639951,90432.0,90431.0,1.4818372]
[1765611052511,0.0341051,90432.0,90431.0,1.4818372]
[1765611054612,0.0341051,90432.0,90431.0,0.7602372]
[1765611054813,0.0341051,90432.0,90431.0,1.4818372]
[1765611056108,0.0341051,90432.0,90431.0,0.7602372]
[1765611056414,0.0341051,90432.0,90431.0,1.4818372]
[1765611058918,0.0341051,90432.0,90431.0,0.7913972]
[1765611059118,0.0341051,90432.0,90431.0,1.4817972]
[1765611059622,0.0341051,90432.0,90431.0,0.7601972]
[1765611059923,0.0341051,90432.0,90431.0,1.4817972]
[1765611061216,0.02520087,90432.0,90431.0,1.53509235]
[1765611061423,0.007,90432.0,90431.0,1.53509235]
[1765611061602,0.03616,90432.0,90431.0,0.84469235]
[1765611061918,0.03616,90432.0,90431.0,0.78034]
[1765611061919,0.08297,90432.0,90431.0,0.78034]
[1765611062112,0.08297,90432.0,90431.0,0.93626]
[1765611062305,0.07997,90432.0,90431.0,0.93626]
[1765611062507,0.07597,90432.0,90431.0,0.93726]
[1765611063521,0.07597,90432.0,90431.0,0.57646]
[1765611073346,0.10367008,90432.0,90431.0,0.57646]
[1765611073746,0.08669008,90432.0,90431.0,0.57646]
[1765611074849,0.08669008,90432.0,90431.0,0.001]
[1765611075143,0.08669008,90432.0,90431.0,0.0307]
[1765611075144,0.44749008,90432.0,90431.0,0.0307]
[1765611076540,0.44849008,90432.0,90431.0,0.0297]
[1765611077344,0.45049008,90432.0,90431.0,0.0297]
[1765611077847,0.44849008,90432.0,90431.0,0.0297]
[1765611078046,0.45049008,90432.0,90431.0,0.0297]
[1765611079151,0.51013998,90432.0,90431.0,0.0297]
[1765611080154,0.51013998,90432.0,90431.0,0.05886]
[1765611083650,0.14933998,90432.0,90431.0,0.05886]
[1765611083848,0.08969008,90432.0,90431.0,0.05886]
[1765611087054,0.03070008,90432.0,90431.0,0.05886]
[1765611095752,0.08773008,90432.0,90431.0,0.05886]
[1765611099165,0.06003,90432.0,90431.0,0.05886]
[1765611101866,0.03259,90432.0,90431.0,0.05886]
[1765611105061,0.003,90432.0,90431.0,0.05886]
[1765611111368,0.030715,90432.0,90431.0,0.05886]
[1765611112471,0.060305,90432.0,90431.0,0.05886]
[1765611112671,0.087745,90432.0,90431.0,0.05886]
[1765611114073,0.087745,90432.0,90431.0,0.78046]
[1765611117671,0.087745,90432.0,90431.0,1.47086]
[1765611119068,0.060305,90432.0,90431.0,1.47086]
[1765611121778,0.089075,90432.0,90431.0,1.47186]
[1765611122777,0.087075,90432.0,90431.0,1.47186]
[1765611123077,0.057305,90432.0,90431.0,1.47186]
[1765611123675,0.027715,90432.0,90431.0,1.47186]
[1765611123877,0.054755,90432.0,90431.0,1.47186]
[1765611126071,0.027715,90432.0,90431.0,1.47186]
[1765611132284,0.054755,90432.0,90431.0,1.47186]
[1765611135289,0.027715,90432.0,90431.0,1.47186]
[1765611136291,0.054755,90432.0,90431.0,1.47186]
[1765611138594,0.027715,90432.0,90431.0,1.47186]
[1765611141996,0.054755,90432.0,90431.0,1.47186]
[1765611145596,0.083115,90432.0,90431.0,1.47186]
[1765611146396,0.083115,90432.0,90431.0,1.47182]
[1765611147682,0.027715,90432.0,90431.0,1.47182]
[1765611157991,0.027715,90432.0,90431.0,0.78146]
[1765611158197,0.057285,90432.0,90431.0,1.47182]
[1765611160109,0.027715,90432.0,90431.0,1.47182]
[1765611169217,0.085325,90432.0,90431.0,1.47182]
[1765611171020,0.102175,90432.0,90431.0,1.47182]
[1765611173122,0.10203897,90432.0,90431.0,1.47182]
[1765611173619,0.08518897,90432.0,90431.0,1.47182]
[1765611179221,0.08518897,90432.0,90431.0,1.11102]
[1765611185927,0.09753897,90432.0,90431.0,0.42066]
[1765611186231,0.09753897,90432.0,90431.0,1.11102]
[1765611187128,0.09753897,90432.0,90431.0,0.42066]
[1765611187330,0.09753897,90432.0,90431.0,0.85958]
[1765611193233,0.02757897,90432.0,90431.0,0.85958]
[1765611206444,0.00016591,90433.0,90432.0,0.0697471]
[1765611207656,0.00016591,90433.0,90432.0,0.0707471]
[1765611208755,0.05756,90439.0,90438.0,0.0652964]
[1765611210049,0.02868,90439.0,90438.0,0.0652964]
[1765611210549,0.06255496,90442.0,90441.0,0.065296]
[1765611211257,0.09027053,90442.0,90441.0,0.065296]
[1765611211758,0.10155053,90442.0,90441.0,0.065296]
[1765611216355,0.10155053,90442.0,90441.0,0.011056]
[1765611217053,0.10155053,90442.0,90441.0,0.065296]
[1765611218260,0.10155053,90442.0,90441.0,0.426096]
[1765611232473,0.10155053,90442.0,90441.0,0.065296]
[1765611238478,0.10149099,90442.0,90441.0,0.065296]
[1765611244080,0.065636,90441.0,90440.0,0.3608]
[1765611244385,0.065637,90433.0,90432.0,0.00016591]
[1765611244584,0.45409303,90433.0,90432.0,0.00016591]
[1765611245683,0.45509303,90433.0,90432.0,0.00016591]
[1765611245984,0.45409303,90433.0,90432.0,0.00016591]
[1765611246284,0.51476171,90433.0,90432.0,0.00016591]
[1765611246487,0.45709303,90433.0,90432.0,0.00016591]
[1765611248588,0.45709303,90433.0,90432.0,0.05809591]
[1765611249090,0.46250754,90433.0,90432.0,0.05809591]
[1765611253595,0.46250754,90433.0,90432.0,0.00016591]
[1765611254784,0.46250754,90433.0,90432.0,0.05809591]
[1765611259296,0.46250754,90433.0,90432.0,0.02922591]
[1765611259499,0.46250754,90433.0,90432.0,0.00016591]
[1765611261595,0.10170754,90433.0,90432.0,0.00016591]
[1765611261797,0.46250754,90433.0,90432.0,0.05754591]
[1765611263299,0.46250754,90433.0,90432.0,0.02922591]
[1765611263500,0.46250754,90433.0,90432.0,0.00016591]
[1765611273214,0.52217622,90433.0,90432.0,0.00016591]
[1765611274307,0.46250754,90433.0,90432.0,0.00016591]
[1765611276717,0.46250754,90433.0,90432.0,0.02767591]
[1765611278732,0.46250754,90433.0,90432.0,0.05590591]
[1765611279529,0.46250754,90433.0,90432.0,0.02767591]
[1765611279720,0.46250754,90433.0,90432.0,0.00016591]
[1765611280329,0.46150754,90433.0,90432.0,0.00016591]
[1765611281933,0.46050754,90433.0,90432.0,0.00016591]
[1765611282125,0.46150754,90433.0,90432.0,0.00016591]
[1765611284727,0.10070754,90433.0,90432.0,0.00016591]
[1765611284927,0.46150754,90433.0,90432.0,0.00016591]
[1765611287034,0.46150754,90433.0,90432.0,0.02767591]
[1765611288827,0.46150754,90433.0,90432.0,0.05590591]
[1765611289430,0.46150754,90433.0,90432.0,0.02767591]
[1765611293541,0.46150754,90433.0,90432.0,0.00016591]
[1765611293843,0.46150754,90433.0,90432.0,0.02767591]
[1765611302151,0.46150754,90433.0,90432.0,0.00016591]
[1765611335069,0.10070754,90433.0,90432.0,0.00016591]
[1765611335270,0.46150754,90433.0,90432.0,0.00016591]
[1765611339073,0.45045054,90433.0,90432.0,0.06668301]
[1765611340374,0.44945054,90433.0,90432.0,0.06668301]
[1765611342172,0.50917825,90433.0,90432.0,0.06668301]
[1765611357586,0.44945054,90433.0,90432.0,0.06668301]
[1765611361196,0.44945054,90433.0,90432.0,0.01122301]
[1765611362889,0.44945054,90433.0,90432.0,0.03846301]
[1765611363389,0.50917825,90433.0,90432.0,0.03846301]
[1765611364598,0.50917825,90433.0,90432.0,0.01122301]
[1765611367699,0.50917825,90433.0,90432.0,0.00016591]
[1765611370501,0.44945054,90433.0,90432.0,0.00016591]
[1765611372793,0.44403603,90433.0,90432.0,0.00016591]
[1765611390708,0.05926,90421.0,90420.0,0.02865]
[1765611390917,0.08691603,90421.0,90420.0,0.0397086]
[1765611391116,0.08691603,90421.0,90420.0,0.02865]
[1765611391812,0.08691603,90421.0,90420.0,0.05824]
[1765611392322,0.08691603,90421.0,90420.0,0.02865]
[1765611392517,0.08691603,90421.0,90420.0,0.02965]
[1765611393026,0.08691603,90421.0,90420.0,0.06024]
[1765611405033,0.08691603,90421.0,90420.0,0.002]
[1765611409035,0.08691603,90421.0,90420.0,0.03065]
[1765611409537,0.08691603,90421.0,90420.0,0.02965]
[1765611410328,0.08691603,90421.0,90420.0,0.02865]
[1765611413142,0.08691603,90421.0,90420.0,0.05824]
[1765611419748,0.07156,90416.0,90415.0,0.55243]
[1765611419938,0.09921603,90416.0,90415.0,0.58131]
[1765611420548,0.11027513,90416.0,90415.0,0.58131]
[1765611421339,0.11027513,90416.0,90415.0,0.58231]
[1765611422545,0.11027513,90416.0,90415.0,0.001]
[1765611422743,0.0662614,90397.0,90396.0,0.12472135]
[1765611423049,0.09391743,90397.0,90396.0,0.10754135]
[1765611423344,0.09391743,90397.0,90396.0,0.06678116]
[1765611424148,0.09391743,90397.0,90396.0,0.06978116]
[1765611424345,0.09391743,90397.0,90396.0,0.06195]
[1765611424849,0.09391743,90397.0,90396.0,0.05895]
[1765611425250,0.02765603,90397.0,90396.0,0.07042]
[1765611425450,0.16066434,90406.0,90405.0,0.05595]
[1765611425751,0.0940002,90406.0,90405.0,0.05595]
[1765611427256,0.0940002,90406.0,90405.0,0.05695]
[1765611427850,0.0940002,90406.0,90405.0,0.05795]
[1765611440256,0.0940002,90406.0,90405.0,0.002]
[1765611445861,0.05729,90396.0,90395.0,0.43044202]
[1765611446067,0.08486399,90396.0,90395.0,0.43044202]
[1765611446977,0.08486399,90396.0,90395.0,0.43144202]
[1765611447554,0.08486399,90396.0,90395.0,0.43244202]
[1765611450965,0.10202399,90396.0,90395.0,0.40370202]
[1765611451161,0.10202399,90396.0,90395.0,0.03198]
[1765611451366,0.10202399,90396.0,90395.0,0.06011]
[1765611458978,0.08486399,90396.0,90395.0,0.06011]
[1765611459177,0.10146399,90396.0,90395.0,0.06011]
[1765611459378,0.10146399,90396.0,90395.0,0.03198]
[1765611460079,0.10146399,90396.0,90395.0,0.05928]